fUST/lending_fUST_20241002
["ID","MTS","AMOUNT","RATE_DAILY","PERIOD"]
[339672817,1727829036149,-151.0,0.00014958,2]
[339672818,1727829036158,-151.0,0.00014958,2]
[339672819,1727829036168,-151.0,0.00014958,2]
[339672820,1727829036177,-151.0,0.00014959,2]
[339672821,1727829036187,-151.0,0.00014959,2]
[339672822,1727829036196,-500.0,0.00014961,2]
[339672823,1727829036206,-500.0,0.00014961,2]
[339672824,1727829036215,-365.58811007,0.00014961,2]
[339672825,1727829036227,-151.0,0.00014962,2]
[339672826,1727829036244,-151.0,0.00014962,2]
[339672827,1727829036253,-151.0,0.00014962,2]
[339672828,1727829036262,-151.0,0.00014962,2]
[339672829,1727829036272,-151.0,0.00014962,2]
[339672830,1727829036281,-151.0,0.00014962,2]
[339672831,1727829036290,-151.0,0.00014962,2]
[339672832,1727829036299,-151.0,0.00014962,2]
[339672833,1727829036308,-151.0,0.00014962,2]
[339672834,1727829036318,-151.0,0.00014962,2]
[339672835,1727829036327,-262.348702,0.00014962,2]
[339672836,1727829036336,-151.0,0.00014962,2]
[339672837,1727829036346,-151.0,0.00014962,2]
[339672838,1727829036355,-153.487916,0.00014962,2]
[339672839,1727829036365,-151.0,0.00014962,2]
[339672840,1727829036374,-151.0,0.00014962,2]
[339672841,1727829036388,-290.908185,0.00014962,2]
[339672842,1727829036397,-290.908185,0.00014962,2]
[339672843,1727829036409,-290.908185,0.00014962,2]
[339672844,1727829036419,-290.908185,0.00014962,2]
[339672845,1727829036429,-290.908185,0.00014962,2]
[339672846,1727829036439,-290.908185,0.00014962,2]
[339672847,1727829036449,-185.55475,0.00014962,2]
[339672848,1727829036459,-185.55475,0.00014962,2]
[339672849,1727829036470,-185.55475,0.00014962,2]
[339672850,1727829036484,-185.55475,0.00014962,2]
[339672851,1727829036494,-185.55475,0.00014962,2]
[339672852,1727829036504,-185.55475,0.00014962,2]
[339672853,1727829036514,-151.0,0.00014962,2]
[339672854,1727829036524,-151.0,0.00014962,2]
[339672855,1727829036534,-151.0,0.00014962,2]
[339672856,1727829036544,-1000.0,0.00014962,2]
[339672857,1727829036555,-1000.0,0.00014962,2]
[339672858,1727829036564,-1000.0,0.00014962,2]
[339672859,1727829036574,-1000.0,0.00014962,2]
[339672860,1727829036583,-1000.0,0.00014962,2]
[339672861,1727829036593,-1000.0,0.00014962,2]
[339672862,1727829036603,-1000.0,0.00014962,2]
[339672863,1727829036612,-1000.0,0.00014962,2]
[339672864,1727829036622,-1000.0,0.00014962,2]
[339672865,1727829036632,-1000.0,0.00014962,2]
[339672866,1727829036641,-1000.0,0.00014962,2]
[339672867,1727829036651,-1000.0,0.00014962,2]
[339672868,1727829036661,-1000.0,0.00014962,2]
[339672869,1727829036671,-1000.0,0.00014962,2]
[339672870,1727829036682,-1000.0,0.00014962,2]
[339672871,1727829036695,-1000.0,0.00014962,2]
[339672872,1727829036706,-1000.0,0.00014962,2]
[339672873,1727829036716,-1000.0,0.00014962,2]
[339672874,1727829036727,-1000.0,0.00014962,2]
[339672875,1727829036739,-1000.0,0.00014962,2]
[339672876,1727829036750,-1000.0,0.00014962,2]
[339672877,1727829036761,-1000.0,0.00014962,2]
[339672878,1727829036772,-1000.0,0.00014962,2]
[339672879,1727829036783,-1000.0,0.00014962,2]
[339672880,1727829036793,-1000.0,0.00014962,2]
[339672881,1727829036803,-1000.0,0.00014962,2]
[339672882,1727829036814,-1000.0,0.00014962,2]
[339672883,1727829036823,-1000.0,0.00014962,2]
[339672884,1727829036835,-1000.0,0.00014962,2]
[339672885,1727829036848,-1000.0,0.00014962,2]
[339672886,1727829036859,-1000.0,0.00014962,2]
[339672887,1727829036871,-1000.0,0.00014962,2]
[339672888,1727829036883,-1000.0,0.00014962,2]
[339672889,1727829036898,-1000.0,0.00014962,2]
[339672890,1727829036909,-1000.0,0.00014962,2]
[339672891,1727829036922,-1000.0,0.00014962,2]
[339672892,1727829036932,-1000.0,0.00014962,2]
[339672893,1727829036942,-1000.0,0.00014962,2]
[339672894,1727829036953,-1000.0,0.00014962,2]
[339672895,1727829036964,-1000.0,0.00014962,2]
[339672896,1727829036975,-1000.0,0.00014962,2]
[339672897,1727829036987,-212.42187,0.00014962,2]
[339672898,1727829036997,-1000.0,0.00014962,2]
[339672899,1727829037008,-1000.0,0.00014962,2]
[339672900,1727829037018,-1000.0,0.00014962,2]
[339672901,1727829037029,-1000.0,0.00014962,2]
[339672902,1727829037041,-1000.0,0.00014962,2]
[339672903,1727829037050,-1000.0,0.00014962,2]
[339672904,1727829037060,-1000.0,0.00014962,2]
[339672905,1727829037070,-1000.0,0.00014962,2]
[339672906,1727829037080,-1000.0,0.00014962,2]
[339672907,1727829037090,-1000.0,0.00014962,2]
[339672908,1727829037099,-1000.0,0.00014962,2]
[339672909,1727829037109,-1000.0,0.00014962,2]
[339672910,1727829037118,-1000.0,0.00014962,2]
[339672911,1727829037128,-212.42187,0.00014962,2]
[339672912,1727829037139,-1000.0,0.00014962,2]
[339672913,1727829037149,-1000.0,0.00014962,2]
[339672914,1727829037158,-1000.0,0.00014962,2]
[339672915,1727829037168,-1000.0,0.00014962,2]
[339672916,1727829037178,-1000.0,0.00014962,2]
[339672917,1727829037187,-1000.0,0.00014962,2]
[339672918,1727829037197,-1000.0,0.00014962,2]
[339672919,1727829037206,-1000.0,0.00014962,2]
[339672920,1727829037215,-1000.0,0.00014962,2]
[339672921,1727829037226,-1000.0,0.00014962,2]
[339672922,1727829037236,-1000.0,0.00014962,2]
[339672923,1727829037248,-299.10376219,0.00014962,2]
[339672924,1727829037259,-157.491238,0.00014962,2]
[339672925,1727829037269,-157.491238,0.00014962,2]
[339672926,1727829037282,-151.0,0.00014962,2]
[339672927,1727829037293,-151.0,0.00014962,2]
[339672928,1727829037306,-151.0,0.00014962,2]
[339672929,1727829037316,-151.0,0.00014962,2]
[339672930,1727829037325,-151.0,0.00014962,2]
[339672931,1727829037337,-151.0,0.00014962,2]
[339672932,1727829037348,-151.0,0.00014962,2]
[339672933,1727829037357,-151.0,0.00014962,2]
[339672934,1727829037367,-324.11253,0.00014962,2]
[339672935,1727829037376,-324.11253,0.00014962,2]
[339672936,1727829037386,-324.11253,0.00014962,2]
[339672937,1727829037396,-324.11253,0.00014962,2]
[339672938,1727829037406,-324.11253,0.00014962,2]
[339672939,1727829037420,-324.11253,0.00014962,2]
[339672940,1727829037429,-324.11253,0.00014962,2]
[339672941,1727829037439,-324.11253,0.00014962,2]
[339672942,1727829037448,-324.11253,0.00014962,2]
[339672943,1727829037457,-324.11253,0.00014962,2]
[339672944,1727829037468,-171.696491,0.00014962,2]
[339672945,1727829037477,-171.696491,0.00014962,2]
[339672946,1727829037487,-171.696491,0.00014962,2]
[339672947,1727829037496,-171.696491,0.00014962,2]
[339672948,1727829037506,-151.0,0.00014962,2]
[339672949,1727829037516,-445.014634,0.00014962,2]
[339672950,1727829037527,-151.0,0.00014962,2]
[339672951,1727829037538,-445.014634,0.00014962,2]
[339672952,1727829037550,-151.0,0.00014962,2]
[339672953,1727829037562,-445.014634,0.00014962,2]
[339672954,1727829037574,-151.0,0.00014962,2]
[339672955,1727829037585,-445.014634,0.00014962,2]
[339672956,1727829037597,-445.014634,0.00014962,2]
[339672957,1727829037607,-151.0,0.00014962,2]
[339672958,1727829037617,-151.0,0.00014962,2]
[339672959,1727829037628,-151.0,0.00014962,2]
[339672960,1727829037639,-275.441194,0.00014962,2]
[339672961,1727829037649,-445.014634,0.00014962,2]
[339672962,1727829037661,-445.014634,0.00014962,2]
[339672963,1727829037672,-445.014634,0.00014962,2]
[339672964,1727829037683,-445.014634,0.00014962,2]
[339672965,1727829037695,-445.014626,0.00014962,2]
[339672966,1727829037705,-494.455745,0.00014962,2]
[339672967,1727829037716,-494.455745,0.00014962,2]
[339672968,1727829037726,-494.455745,0.00014962,2]
[339672969,1727829037736,-494.455745,0.00014962,2]
[339672970,1727829037745,-494.455745,0.00014962,2]
[339672971,1727829037755,-494.455745,0.00014962,2]
[339672972,1727829037765,-494.455745,0.00014962,2]
[339672973,1727829037776,-494.455745,0.00014962,2]
[339672974,1727829037787,-494.455745,0.00014962,2]
[339672975,1727829037797,-494.455745,0.00014962,2]
[339672976,1727829037809,-808.918876,0.00014962,2]
[339672977,1727829037819,-808.918876,0.00014962,2]
[339672978,1727829037828,-808.918876,0.00014962,2]
[339672979,1727829037841,-808.918876,0.00014962,2]
[339672980,1727829037851,-151.0,0.00014962,2]
[339672981,1727829037863,-151.0,0.00014962,2]
[339672982,1727829037874,-151.0,0.00014962,2]
[339672983,1727829037885,-151.0,0.00014962,2]
[339672984,1727829037899,-182.071222,0.00014962,2]
[339672986,1727829037910,-997.90440076,0.00014967,2]
[339672988,1727829037920,-358.56269,0.00014969,2]
[339672990,1727829037931,-358.56269,0.00014969,2]
[339672992,1727829037942,-500.0,0.00014973,2]
[339672993,1727829037952,-500.0,0.00014973,2]
[339672995,1727829037964,-500.0,0.00014973,2]
[339672997,1727829037974,-500.0,0.00014973,2]
[339672999,1727829037985,-509.78477037,0.00014973,2]
[339673001,1727829037996,-501.90418186,0.00014973,2]
[339673002,1727829038007,-500.0,0.00014973,2]
[339673003,1727829038020,-500.0,0.00014973,2]
[339673004,1727829038030,-500.0,0.00014973,2]
[339673005,1727829038039,-500.0,0.00014973,2]
[339673007,1727829038048,-500.0,0.00014973,2]
[339673009,1727829038057,-500.0,0.00014973,2]
[339673011,1727829038067,-500.0,0.00014973,2]
[339673012,1727829038076,-500.0,0.00014973,2]
[339673013,1727829038086,-500.0,0.00014973,2]
[339673014,1727829038095,-500.0,0.00014973,2]
[339673016,1727829038105,-500.0,0.00014973,2]
[339673017,1727829038114,-500.0,0.00014973,2]
[339673018,1727829038125,-500.0,0.00014973,2]
[339673019,1727829038135,-494.62356352,0.00014973,2]
[339673020,1727829038146,-500.0,0.00014973,2]
[339673021,1727829038156,-212.42187,0.00014973,2]
[339673023,1727829038165,-212.42187,0.00014973,2]
[339673024,1727829038175,-151.0,0.00014973,2]
[339673025,1727829038185,-151.0,0.00014979,2]
[339673026,1727829038194,-151.0,0.00014979,2]
[339673027,1727829038204,-358.56269,0.00014979,2]
[339673028,1727829038213,-358.56269,0.00014979,2]
[339673029,1727829038223,-151.0,0.00014979,2]
[339673030,1727829038233,-233.838558,0.00014979,2]
[339673031,1727829038243,-151.0,0.00014979,2]
[339673032,1727829038252,-151.0,0.00014979,2]
[339673033,1727829038263,-151.0,0.00014979,2]
[339673034,1727829038273,-151.0,0.00014979,2]
[339673035,1727829038283,-290.908185,0.00014979,2]
[339673036,1727829038293,-290.908185,0.00014979,2]
[339673037,1727829038303,-185.55475,0.00014979,2]
[339673038,1727829038313,-185.55475,0.00014979,2]
[339673039,1727829038323,-151.0,0.00014979,2]
[339673040,1727829038332,-212.42187,0.00014979,2]
[339673041,1727829038342,-212.42187,0.00014979,2]
[339673042,1727829038352,-157.491238,0.00014979,2]
[339673043,1727829038362,-157.491238,0.00014979,2]
[339673044,1727829038371,-151.0,0.00014979,2]
[339673045,1727829038380,-151.0,0.00014979,2]
[339673046,1727829038390,-298.507206,0.00014979,2]
[339673047,1727829038399,-324.11253,0.00014979,2]
[339673048,1727829038550,-324.112526,0.00014979,2]
[339673049,1727829038559,-171.696491,0.00014979,2]
[339673050,1727829038570,-171.696491,0.00014979,2]
[339673051,1727829038582,-494.455745,0.00014979,2]
[339673052,1727829038594,-494.455745,0.00014979,2]
[339673053,1727829038604,-808.918876,0.00014979,2]
[339673054,1727829038616,-808.918876,0.00014979,2]
[339673055,1727829038626,-151.0,0.0001499,2]
[339673056,1727829038636,-151.0,0.0001499,2]
[339673057,1727829038646,-210.635219,0.0001499,2]
[339673058,1727829038655,-358.56269,0.0001499,2]
[339673059,1727829038666,-358.56269,0.0001499,2]
[339673060,1727829038676,-358.56269,0.0001499,2]
[339673061,1727829038688,-358.56269,0.0001499,2]
[339673062,1727829038699,-151.0,0.0001499,2]
[339673063,1727829038709,-151.0,0.0001499,2]
[339673064,1727829038720,-151.0,0.0001499,2]
[339673065,1727829038732,-151.0,0.0001499,2]
[339673066,1727829038741,-151.0,0.0001499,2]
[339673067,1727829038750,-151.0,0.0001499,2]
[339673068,1727829038760,-151.0,0.0001499,2]
[339673069,1727829038771,-151.0,0.0001499,2]
[339673070,1727829038782,-290.908185,0.0001499,2]
[339673071,1727829038792,-290.908185,0.0001499,2]
[339673072,1727829038801,-290.908185,0.0001499,2]
[339673073,1727829038811,-290.908185,0.0001499,2]
[339673074,1727829038820,-185.55475,0.0001499,2]
[339673075,1727829038829,-185.55475,0.0001499,2]
[339673076,1727829038839,-185.55475,0.0001499,2]
[339673077,1727829038850,-185.55475,0.0001499,2]
[339673078,1727829038861,-151.0,0.0001499,2]
[339673079,1727829038873,-151.0,0.0001499,2]
[339673080,1727829038885,-157.491238,0.0001499,2]
[339673081,1727829038900,-157.491238,0.0001499,2]
[339673082,1727829038910,-151.0,0.0001499,2]
[339673083,1727829038919,-171.696491,0.0001499,2]
[339673084,1727829038930,-171.696491,0.0001499,2]
[339673085,1727829038939,-808.918876,0.0001499,2]
[339673086,1727829038949,-808.918876,0.0001499,2]
[339673087,1727829038958,-500.0,0.00014999,2]
[339673088,1727829038970,-491.29437286,0.00014999,2]
[339673089,1727829038979,-444.74545744,0.00014999,2]
[339673090,1727829038988,-500.0,0.00014999,2]
[339673091,1727829038998,-500.0,0.00014999,2]
[339673092,1727829039007,-500.0,0.00014999,2]
[339673093,1727829039017,-500.0,0.00014999,2]
[339673094,1727829039026,-500.0,0.00014999,2]
[339673095,1727829039035,-500.0,0.00014999,2]
[339673096,1727829039044,-500.0,0.00014999,2]
[339673097,1727829039053,-500.0,0.00014999,2]
[339673098,1727829039062,-630.50908273,0.00014999,2]
[339673099,1727829039071,-500.0,0.00014999,2]
[339673100,1727829039080,-613.07532117,0.00014999,2]
[339673101,1727829039090,-494.455745,0.00014999,2]
[339673102,1727829039099,-494.455745,0.00014999,2]
[339673103,1727829039109,-125191.79950981,0.00015,2]
[339673104,1727829039121,-50000.0,0.00015,2]
[339673105,1727829039130,-358.56269,0.00015,2]
[339673106,1727829039143,-358.56269,0.00015,2]
[339673107,1727829039153,-358.56269,0.00015,2]
[339673108,1727829039163,-358.56269,0.00015,2]
[339673109,1727829039173,-358.56269,0.00015,2]
[339673110,1727829039184,-358.56269,0.00015,2]
[339673111,1727829039195,-358.56269,0.00015,2]
[339673112,1727829039206,-358.56269,0.00015,2]
[339673113,1727829039215,-358.56269,0.00015,2]
[339673114,1727829039228,-358.56269,0.00015,2]
[339673115,1727829039237,-151.0,0.00015,2]
[339673116,1727829039248,-221.531495,0.00015,2]
[339673117,1727829039258,-151.0,0.00015,2]
[339673118,1727829039268,-151.0,0.00015,2]
[339673119,1727829039278,-151.0,0.00015,2]
[339673120,1727829039289,-151.0,0.00015,2]
[339673121,1727829039300,-151.0,0.00015,2]
[339673122,1727829039311,-151.0,0.00015,2]
[339673123,1727829039321,-290.908185,0.00015,2]
[339673124,1727829039331,-290.908185,0.00015,2]
[339673125,1727829039340,-290.908185,0.00015,2]
[339673126,1727829039350,-290.908181,0.00015,2]
[339673127,1727829039360,-185.55475,0.00015,2]
[339673128,1727829039370,-185.55475,0.00015,2]
[339673129,1727829039381,-185.55475,0.00015,2]
[339673130,1727829039391,-185.554742,0.00015,2]
[339673131,1727829039402,-151.0,0.00015,2]
[339673132,1727829039414,-216.764249,0.00015,2]
[339673133,1727829039425,-216.764249,0.00015,2]
[339673134,1727829039436,-216.764255,0.00015,2]
[339673135,1727829039447,-212.42187,0.00015,2]
[339673136,1727829039458,-212.42187,0.00015,2]
[339673137,1727829039469,-212.42187,0.00015,2]
[339673138,1727829039480,-212.42187,0.00015,2]
[339673139,1727829039492,-212.42187,0.00015,2]
[339673140,1727829039504,-212.421866,0.00015,2]
[339673141,1727829039515,-157.491238,0.00015,2]
[339673142,1727829039527,-157.491238,0.00015,2]
[339673143,1727829039536,-157.491238,0.00015,2]
[339673144,1727829039547,-157.491232,0.00015,2]
[339673145,1727829039558,-151.0,0.00015,2]
[339673146,1727829039570,-151.0,0.00015,2]
[339673147,1727829039580,-280.350444,0.00015,2]
[339673148,1727829039591,-151.0,0.00015,2]
[339673149,1727829039600,-171.696491,0.00015,2]
[339673150,1727829039610,-171.696485,0.00015,2]
[339673151,1727829039620,-494.455745,0.00015,2]
[339673152,1727829039630,-494.455745,0.00015,2]
[339673153,1727829039640,-494.455745,0.00015,2]
[339673154,1727829039650,-494.455745,0.00015,2]
[339673155,1727829039660,-808.918876,0.00015,2]
[339673156,1727829039670,-808.918873,0.00015,2]
[339673157,1727829039682,-500.0,0.00015058,2]
[339673158,1727829039692,-153.0,0.000151,2]
[339673159,1727829039703,-358.56269,0.00015197,2]
[339673160,1727829039714,-358.562693,0.00015197,2]
[339673161,1727829039726,-150.112233,0.000152,2]
[339673162,1727829039740,-179.11,0.000152,2]
[339673163,1727829039750,-997.90440076,0.00015253,2]
[339673164,1727829039762,-240.77106398,0.00015417,2]
[339673165,1727829039773,-14819.4101719,0.0001542,2]
[339673168,1727829040351,-323.81791502,0.00014854,2]
[339673169,1727829040364,-893.18208498,0.00014854,2]
[339673170,1727829040373,-184.249612,0.00014962,2]
[339673171,1727829040383,-8.45437467,0.0001542,2]
[339673172,1727829040399,-99.81488353,0.0001542,2]
[339673173,1727829040408,-153.0,0.00015425,2]
[339673174,1727829040418,-494.455745,0.00015454,2]
[339673175,1727829040427,-494.455749,0.00015454,2]
[339673176,1727829040436,-500.0,0.00015497,2]
[339673177,1727829040446,-18577.84573814,0.000155,2]
[339673178,1727829040455,-300.0,0.000155,5]
[339673179,1727829040464,-15184.915874,0.000155,2]
[339673180,1727829040474,-3000.0,0.000155,30]
[339673181,1727829040487,-589.956573,0.00015503,2]
[339673182,1727829040497,-644.651755,0.00015503,2]
[339673183,1727829040507,-520.492336,0.00015503,2]
[339673184,1727829040516,-3000.0,0.0001551,30]
[339673185,1727829040526,-3000.0,0.0001552,30]
[339673186,1727829040535,-3000.0,0.0001553,30]
[339673187,1727829040545,-311.82407372,0.00015539,2]
[339673188,1727829040555,-1426.3740045,0.00015539,2]
[339673189,1727829040566,-1504.0,0.0001554,2]
[339673190,1727829040576,-3000.0,0.0001554,30]
[339673191,1727829040587,-3000.0,0.0001555,30]
[339673192,1727829040597,-3000.0,0.0001556,30]
[339673193,1727829040606,-166.599938,0.00015566,2]
[339673194,1727829040616,-3000.0,0.0001557,30]
[339673195,1727829040626,-3000.0,0.0001558,30]
[339673196,1727829040637,-36444.31200955,0.00015581,2]
[339673197,1727829041191,-25065.7011626,0.00014999,2]
[339673198,1727829041200,-1314.93610221,0.00015581,2]
[339673199,1727829041211,-4985.03868171,0.00015581,2]
[339673200,1727829041223,-2773.30000008,0.00015581,2]
[339673201,1727829041236,-4927.75967115,0.00015581,2]
[339673202,1727829041245,-500.0,0.00015581,2]
[339673203,1727829041254,-500.0,0.00015581,2]
[339673204,1727829041263,-500.0,0.00015581,2]
[339673205,1727829041272,-500.0,0.00015581,2]
[339673206,1727829041282,-500.0,0.00015581,2]
[339673207,1727829041291,-500.0,0.00015581,2]
[339673208,1727829041301,-528.2073236,0.00015581,2]
[339673209,1727829041310,-3000.0,0.0001559,30]
[339673210,1727829041319,-3000.0,0.000156,30]
[339673211,1727829041328,-1000.0,0.00015605,2]
[339673212,1727829041338,-160.0,0.00015608,3]
[339673213,1727829041348,-3000.0,0.0001561,30]
[339673214,1727829041358,-3000.0,0.0001562,30]
[339673215,1727829041367,-3000.0,0.0001563,30]
[339673216,1727829041376,-1000.0,0.00015635,2]
[339673217,1727829041386,-3000.0,0.0001564,30]
[339673218,1727829041395,-3000.0,0.00015641,2]
[339673219,1727829041404,-3863.912166,0.0001565,30]
[339673220,1727829041414,-1000.0,0.00015694,2]
[339673221,1727829041423,-444.266501,0.00015694,2]
[339673222,1727829041432,-1600.867601,0.00015694,2]
[339673223,1727829041441,-832.825191,0.00015694,2]
[339673224,1727829041452,-602.714631,0.00015694,2]
[339673225,1727829041465,-589.956573,0.00015694,2]
[339673226,1727829041477,-644.651755,0.00015694,2]
[339673227,1727829041487,-520.492336,0.00015694,2]
[339673228,1727829041496,-700.0,0.000157,6]
[339673229,1727829041506,-583.070698,0.00015702,2]
[339673230,1727829041515,-617.86679,0.00015702,2]
[339673231,1727829041524,-1000.0,0.00015706,2]
[339673232,1727829041533,-306.0,0.00015708,2]
[339673233,1727829041544,-3627.00451343,0.00015711,2]
[339673234,1727829041555,-4944.47166127,0.00015711,2]
[339673266,1727829043430,-184.249612,0.00014962,2]
[339673267,1727829043441,-184.249612,0.00014962,2]
[339673268,1727829043450,-184.249612,0.00014962,2]
[339673269,1727829043460,-184.249612,0.00014962,2]
[339673270,1727829043470,-184.249612,0.00014979,2]
[339673271,1727829043485,-184.249612,0.00015,2]
[339673272,1727829043496,-184.249612,0.00015,2]
[339673274,1727829043506,-184.249612,0.00015,2]
[339673275,1727829043524,-184.249612,0.00015454,2]
[339673276,1727829043538,-4031.7990099,0.00015711,2]
[339673277,1727829043551,-597.75201018,0.00015711,2]
[339673278,1727829043565,-6450.51140535,0.00015711,2]
[339673279,1727829043575,-1000.0,0.00015795,2]
[339673280,1727829043586,-1000.0,0.00015799,2]
[339673281,1727829043596,-160.56668596,0.000158,7]
[339673282,1727829043606,-166.599938,0.00015822,2]
[339673283,1727829043617,-16109.4203296,0.0001587,2]
[339673284,1727829043629,-4506.64042887,0.0001587,2]
[339673303,1727830232572,-604.9377143,0.00014493,2]
[339673304,1727830232582,-500.0,0.00014632,2]
[339673305,1727830232592,-525.0,0.00015054,2]
[339673306,1727830232604,-1217.0,0.00015054,2]
[339673307,1727830232620,-300.0,0.00015114,2]
[339673308,1727830232631,-194.356899,0.00015115,2]
[339673309,1727830232643,-154.466697,0.00015115,2]
[339673310,1727830232655,-388.65482,0.00015115,2]
[339673311,1727830232666,-569.646798,0.00015115,2]
[339673312,1727830232677,-222.133251,0.00015115,2]
[339673313,1727830232689,-233.228279,0.00015115,2]
[339673314,1727830232701,-160.0,0.00015127,3]
[339673315,1727830232712,-209.2405291,0.000152,2]
[339673316,1727830232722,-153.0,0.00015205,2]
[339673317,1727830232733,-153.0,0.00015205,2]
[339673318,1727830232743,-160.0,0.00015254,4]
[339673319,1727830232754,-153.0,0.00015288,2]
[339673320,1727830232765,-388.65482,0.00015304,2]
[339673321,1727830232775,-569.646798,0.00015304,2]
[339673322,1727830232786,-233.228279,0.00015304,2]
[339673323,1727830232797,-154.466697,0.00015367,2]
[339673324,1727830232808,-160.0,0.0001538,5]
[339673325,1727830232818,-1361.70731578,0.0001546,2]
[339673326,1727830232830,-194.356899,0.00015493,2]
[339673327,1727830232841,-388.65482,0.00015493,2]
[339673328,1727830232851,-569.646798,0.00015493,2]
[339673329,1727830232862,-233.228279,0.00015493,2]
[339673330,1727830232873,-300.397319,0.000155,5]
[339673331,1727830232884,-1770.31179963,0.000155,30]
[339673368,1727830238323,-1229.68820037,0.000155,30]
[339673370,1727830238334,-160.0,0.00015507,6]
[339673372,1727830238344,-3000.0,0.0001551,30]
[339673375,1727830238355,-3000.0,0.0001552,30]
[339673377,1727830238366,-3000.0,0.0001553,30]
[339673379,1727830238376,-179.11,0.00015539,2]
[339673381,1727830238385,-3000.0,0.0001554,30]
[339673383,1727830238395,-3000.0,0.0001555,30]
[339673404,1727830238585,-3000.0,0.0001556,30]
[339673407,1727830238611,-3000.0,0.0001557,30]
[339673409,1727830238624,-3000.0,0.0001558,30]
[339673411,1727830238634,-3000.0,0.0001559,30]
[339673413,1727830238643,-4893.40658506,0.00015596,2]
[339673415,1727830238653,-3000.0,0.000156,30]
[339673417,1727830238664,-3000.0,0.0001561,30]
[339673419,1727830238674,-154.466697,0.00015619,2]
[339673421,1727830238683,-3000.0,0.0001562,30]
[339673423,1727830238694,-1000.0,0.00015622,2]
[339673425,1727830238704,-3000.0,0.0001563,30]
[339673427,1727830238713,-160.0,0.00015633,7]
[339673429,1727830238722,-3000.0,0.0001564,30]
[339673431,1727830238731,-3863.912166,0.0001565,30]
[339673434,1727830238741,-1000.0,0.00015655,2]
[339673436,1727830238750,-1000.0,0.00015675,2]
[339673437,1727830238760,-388.65482,0.00015682,2]
[339673440,1727830238770,-569.646798,0.00015682,2]
[339673442,1727830238780,-233.228279,0.00015682,2]
[339673444,1727830238789,-1000.0,0.00015712,2]
[339673446,1727830238798,-1000.0,0.00015718,2]
[339673448,1727830238807,-1000.0,0.00015738,2]
[339673450,1727830238817,-1000.0,0.00015742,2]
[339673452,1727830238826,-454.8743606,0.00015752,2]
[339673454,1727830238835,-160.0,0.0001576,8]
[339673455,1727830238844,-202.10604493,0.0001576,5]
[339673458,1727830238854,-152.03949436,0.00015768,2]
[339673460,1727830238863,-887.33382537,0.00015773,2]
[339673462,1727830238876,-112.66617463,0.00015773,2]
[339673464,1727830238886,-786.12353556,0.00015775,2]
[339673466,1727830238898,-213.87646444,0.00015775,2]
[339673468,1727830238908,-798.67083177,0.00015779,2]
[339673470,1727830238921,-201.32916823,0.00015779,2]
[339673472,1727830238930,-1000.0,0.00015782,2]
[339673474,1727830238940,-4.14047654,0.00015792,2]
[339673612,1727830240266,-995.85952346,0.00015792,2]
[339673614,1727830240275,-1000.0,0.00015834,2]
[339673616,1727830240286,-1000.0,0.00015834,2]
[339673619,1727830240296,-5167.56475627,0.0001586,2]
[339673623,1727830240324,-53861.74173045,0.0001586,2]
[339673901,1727830243393,-370.65005226,0.0001556,2]
[339673903,1727830243403,-300.441912,0.000158,2]